[Event "Romanian Rapid Open 2022"]
[Site "Sebes"]
[Date "2022.12.02"]
[Round "6.27"]
[White "Anghel, Iulian-Mihai"]
[Black "Maresanu, Mina-Andrei"]
[Result "1-0"]
[ECO "B33"]
[WhiteElo "2061"]
[BlackElo "1877"]
[Annotator "TA"]
[PlyCount "99"]
[EventDate "2022.12.02"]
[EventType "rapid"]
[EventCountry "ROU"]
[SourceTitle "playchess.com"]
[Source "ChessBase"]
[SourceQuality "1"]
[TimeControl "600+5"]

{[%evp 23,99,6,16,0,8,13,37,28,62,70,65,48,60,7,63,52,68,66,102,13,188,195,200,185,221,156,161,161,162,128,131,137,288,108,272,286,362,336,339,0,345,0,363,0,333,90,99,99,1047,334,349,310,412,427,1316,-738,-695,-714,-725,-732,-725,-723,-721,-742,-737,-871,-895,-843,-714,-744,-436,-434,29987,-464,29988,29989,29989,29990]} 1. e4 {[%emt 0:00:02]} c5 {[%emt 0:00:02]} 2. Nf3 {[%emt 0:00:02][%cal Bg1f3,Bf3d4,Bd4b5,Bb5a3,Ba3c2][%mdl 32]} Nc6 {[%emt 0:00:03]} 3. d4 {[%emt 0:00:02]} cxd4 4. Nxd4 {[%emt 0:00:01]} Nf6 {[%emt 0:00:05]} 5. Nc3 {[%emt 0:00:04]} e5 {[%emt 0:00:02]} 6. Ndb5 {[%emt 0:00:14]} d6 {[%emt 0:00:02]} 7. Bg5 {[%emt 0:00:12]} a6 {[%emt 0:00:02]} 8. Na3 {[%emt 0:00:02]} b5 {[%emt 0:00:01][%cal Bb7b5,Bb5b4][%mdl 32]} 9. Nd5 {[%emt 0:00:01]} Be7 {[%emt 0:00:02]} 10. Bxf6 {[%emt 0:00:03]} Bxf6 {[%emt 0:00:03]} 11. c4 {[%emt 0:00:03]} b4 {[%emt 0:00:02]} 12. Nc2 {[%emt 0:00:01]} a5 {[%emt 0:00:01] 12...0-0 is the fancy move.} 13. g3 {[%emt 0:00:12][%cal Bg2g3,Bg3g4,Bg4g5][%mdl 32] B33: Sicilian: Pelikan and Sveshnikov Variations.} Bg5 {[%emt 0:00:09]} 14. h4 {[%emt 0:00:40] is the legacy move (14.Bg2).} Bh6 {[%emt 0:00:03]} 15. Bh3 {[%emt 0:00:05] White is slightly better.} O-O {[%emt 0:00:05]} 16. Bxc8 {[%emt 0:00:52]} Rxc8 {[%emt 0:00:04]} 17. g4 {[%emt 0:01:11]} Bf4 {[%emt 0:00:12]} 18. Qf3 {[%emt 0:00:43]} (18. b3 $14) 18... Re8 {[%emt 0:00:34]} (18... Ne7 $1 $11 19. Nxf4 exf4) 19. b3 $14 {[%emt 0:01:08]} Re6 {[%emt 0:02:09] [#]} 20. g5 $146 {[%emt 0:00:56]} ({Predecessor:} 20. Rd1 Qe8 21. Kf1 Kh8 22. g5 Kg8 23. Rg1 Kh8 24. Rg4 h5 25. Rg1 g6 26. Kg2 {1-0 (54) Neatherway,A (1793)-Charnley,B (1877) England 2018}) 20... Ne7 {[%emt 0:00:59]} 21. Nce3 {[%emt 0:01:19] White is more active.} (21. Nxf4 $16 exf4 22. O-O-O (22. Qxf4 Ng6 $14) (22. Nd4 Re5 $16)) 21... Nc6 $2 {[%emt 0:01:54]} (21... Bxe3 $11 22. fxe3 Nxd5 23. exd5 Re7) 22. Nf5 $1 $18 {[%emt 0:02:19] Pair of Knights!} Ra8 {[%emt 0:02:19]} 23. Rd1 {[%emt 0:00:40]} a4 {[%emt 0:00:34]} 24. Nxf4 {[%emt 0:00:27]} exf4 {[%emt 0:00:05]} 25. Qxf4 {[%emt 0:00:02]} Ne5 {[%emt 0:00:27]} 26. c5 {[%emt 0:00:39] Strongly threatening 0-0.} axb3 {[%emt 0:00:51]} 27. axb3 {[%emt 0:00:01] Black must now prevent 0-0.} (27. cxd6 $2 bxa2 28. O-O b3 $19) 27... Ra3 $2 {[%emt 0:00:10]} (27... Qe8 $16 {is a better defense.} 28. Nxd6 (28. Rxd6 $2 Ra1+ 29. Kd2 Rxh1 $19) 28... Qc6) 28. Rh3 $2 {[%emt 0:00:11]} (28. Rxd6 $2 Rxd6 29. O-O Re6 $19) (28. cxd6 Rxb3 29. Nd4 Rb1 30. Nxe6 (30. Rxb1 $2 Nd3+ 31. Ke2 Nxf4+ $19) 30... Qxd6 31. Rxb1 Nd3+ 32. Ke2 Nxf4+ 33. Nxf4 Qxf4 34. Rxb4 h6 $14) (28. O-O $18 {is more deadly.}) 28... Ng6 $2 {[%emt 0:00:45]} (28... Qa8 $16 {might work better.}) 29. Qe3 {[%emt 0:00:09]} d5 {[%emt 0:00:05]} 30. Rxd5 {[%emt 0:00:04]} (30. Qd4 Qf8 31. Re3 (31. Qxb4 $2 Rxe4+ $19) (31. Qxd5 $2 Nf4 $19) 31... dxe4 $18) 30... Ra1+ {[%emt 0:00:05]} 31. Kd2 $2 {[%emt 0:00:06]} ({Only move:} 31. Ke2 $1 $18 Qe8 32. Kf3 Ne5+ 33. Kg2) 31... Ra2+ $2 {[%emt 0:00:03][%mdl 8192]} (31... Qa8 $1 $11 {and Black is okay.} 32. Ke2 h5) 32. Ke1 {[%emt 0:00:06]} Ra1+ {[%emt 0:00:02]} 33. Kd2 {[%emt 0:00:03]} Ra2+ {[%emt 0:00:04] [#]} 34. Kc1 $2 {[%emt 0:00:08]} (34. Kd1 $1 $18 {and the rest is easy.} Qf8 35. Qd4) 34... Ra1+ $16 {[%emt 0:00:14]} 35. Kc2 {[%emt 0:00:04]} Ra2+ $2 {[%emt 0:00:02][%mdl 8192]} (35... Qa8 $16 36. Qd4 Qa2+ 37. Qb2 h5 38. gxh6 Qxb2+ 39. Kxb2 Rea6) 36. Kd1 $2 {[%emt 0:00:02]} (36. Kb1 Qxd5 37. exd5 (37. Kxa2 Ra6+ 38. Kb1 Qd1+ 39. Qc1 Ra1+ 40. Kxa1 Qxc1+ 41. Ka2 Qd2+ 42. Kb1 Qe1+ 43. Ka2 Qxf2+ 44. Kb1 Qf1+ 45. Kc2 Qxh3 $19) 37... Rxe3 38. Rxe3) 36... Ra1+ {[%emt 0:00:03] [#]} 37. Ke2 $1 {[%emt 0:00:07]} (37. Kc2 Qa8 38. Qd4 Qa2+ 39. Qb2 h5 40. gxh6 Rxe4 41. Rd8+ (41. Nxg7 Re2+ 42. Rd2 Rxd2+ 43. Kxd2 Qxb2+ 44. Ke3 Qxb3+ 45. Ke4 Qc4+ 46. Ke3 Re1+ 47. Kf3 Qe4+ 48. Kg3 Rg1+ 49. Kh2 Qh1#) 41... Kh7 42. Qxa2 (42. Nxg7 Re2+ 43. Rd2 Rxd2+ 44. Kxd2 Qxb2+ 45. Kd3 Qxb3+ 46. Ke4 Qc4+ 47. Ke3 Re1+ 48. Kf3 Qe4+ 49. Kg3 Rg1+ 50. Kh2 Qh1#) 42... Re2+ 43. Kd3 Rexa2 $18) 37... Ra2+ {[%emt 0:00:17]} 38. Kf1 {[%emt 0:00:03]} Qe8 {[%emt 0:00:09]} (38... Qf8 $142 39. Qd4 Ra8) 39. Qd3 $4 {[%emt 0:00:04][%mdl 8192]} (39. Qd4 $18 Ne5 40. Rd8) 39... Ra1+ $19 {[%emt 0:00:04]} ({Worse is} 39... Rxe4 40. Qb1 Ree2 41. Rf3 $11) 40. Kg2 {[%emt 0:00:08] Qd4 is the strong threat.} Nf4+ {[%emt 0:00:01]} (40... Rxe4 $2 41. Kh2 Ree1 42. Re3 (42. Rd8 $2 Rh1+ 43. Kg2 Rag1+ 44. Kf3 Rxh3+ $19) 42... Rh1+ 43. Kg3 Qb8+ 44. Rd6 $18) 41. Kh2 {[%emt 0:00:00]} Nxd3 42. Rhxd3 Ra8 {[%emt 0:00:17]} ({Weaker is} 42... Rxe4 43. Rd8 Rc1 44. R3d5 $15) 43. Nd6 {[%emt 0:00:05]} Qe7 {[%emt 0:00:03]} 44. Nf5 {[%emt 0:00:02]} Qc7+ {[%emt 0:00:02]} 45. Kg2 {[%emt 0:00:01]} g6 {[%emt 0:00:05]} 46. Nh6+ {[%emt 0:00:02]} Kg7 {[%emt 0:00:01]} 47. Rd7 {[%emt 0:00:01]} Qxc5 {[%emt 0:00:26][%mdl 8192]} (47... Qf4 $19 48. Rxf7+ Qxf7 49. Nxf7 Kxf7) 48. Rxf7+ {[%emt 0:00:02]} Kh8 {[%emt 0:00:01]} 49. Rdd7 {[%emt 0:00:02][%csl Gd7][%cal Rf7h7]} Re7 {[%emt 0:00:15]} 50. Rdxe7 {[%emt 0:00:03] Weighted Error Value: White=1.11/Black=0.53} 1-0

[Event "Romanian Rapid Open 2022"]
[Site "Sebes"]
[Date "2022.12.02"]
[Round "6.28"]
[White "Balaban-Voia, Alexandru"]
[Black "Dobre, Ana-Margareta-Alexan"]
[Result "1-0"]
[ECO "A08"]
[WhiteElo "1994"]
[BlackElo "1857"]
[Annotator "TA"]
[PlyCount "65"]
[EventDate "2022.12.02"]
[EventType "rapid"]
[EventCountry "ROU"]
[SourceTitle "playchess.com"]
[Source "ChessBase"]
[SourceQuality "1"]
[TimeControl "600+5"]

{[%evp 17,65,0,30,14,37,9,11,1,20,2,-6,6,31,11,34,18,86,76,88,79,89,77,113,87,90,44,36,40,43,69,60,-89,-108,-249,-250,-225,0,0,86,-1005,-155,-389,314,310,1193,1183,1049,979,29991,29992]} 1. Nf3 {[%emt 0:00:02]} d5 {[%emt 0:00:01]} 2. g3 {[%emt 0:00:03]} Nf6 {[%emt 0:00:02]} 3. Bg2 {[%emt 0:00:01]} g6 {[%emt 0:00:05]} 4. O-O {[%emt 0:00:06]} Bg7 {[%emt 0:00:01]} 5. d3 {[%emt 0:00:01]} O-O {[%emt 0:00:05]} 6. Nbd2 {[%emt 0:00:02]} c5 {[%emt 0:00:44]} 7. e4 {[%emt 0:00:23]} dxe4 {[%emt 0:00:19]} 8. dxe4 {[%emt 0:00:02]} Nc6 {[%emt 0:00:08]} 9. c3 {[%emt 0:00:07]} Bg4 {[%emt 0:00:48]} 10. Qc2 {[%emt 0:00:11] A08: King's Indian Attack.} Rc8 {[%emt 0:00:40]} 11. h3 {[%emt 0:01:37] [#]} Be6 $146 {[%emt 0:00:09]} ({Predecessor:} 11... Bd7 12. Re1 b5 13. Nf1 b4 14. Ne3 a5 15. Nd5 Ne8 16. Be3 e6 17. Nf4 Nd4 {1-0 (33) Hess,M (2155)-Blaich,G (2282) Germany 2000}) 12. Ng5 {[%emt 0:01:45] White wants to play Nxe6. The position is equal.} Bd7 {[%emt 0:01:29]} 13. Nc4 {[%emt 0:00:07]} b5 {[%emt 0:00:16] Against e5} 14. Ne3 {[%emt 0:00:03]} h6 {[%emt 0:01:04]} 15. Nf3 {[%emt 0:00:01]} Be6 {[%emt 0:00:11]} 16. Rd1 {[%emt 0:00:30]} Qb6 {[%emt 0:00:02]} (16... Qa5 $1 $11 {remains equal.}) 17. Nd5 $16 {[%emt 0:00:34]} Nxd5 {[%emt 0:00:21]} 18. exd5 {[%emt 0:00:03]} Bf5 {[%emt 0:00:01]} 19. Qe2 {[%emt 0:00:18]} Na5 {[%emt 0:00:43]} 20. g4 {[%emt 0:00:37]} (20. Qxe7 Rfe8 21. Qh4 g5 22. Nxg5 hxg5 23. Qxg5 Qf6 $15) 20... Bd7 {[%emt 0:00:18]} 21. Qxe7 {[%emt 0:01:34] White is more active.} ({Better is} 21. Ne5 $1 $16 {[%cal Re5d7]} Rfd8 22. Bf4) 21... Rfe8 $14 {[%emt 0:00:15]} 22. Qh4 {[%emt 0:00:06]} (22. Qxd7 Rcd8 $15) 22... g5 {[%emt 0:00:36]} 23. Qh5 {[%emt 0:00:38] Black must now prevent d6.} (23. Bxg5 hxg5 24. Nxg5 Qg6 $17) 23... b4 {[%emt 0:00:23]} 24. cxb4 {[%emt 0:00:56]} (24. d6 $1 $14 {stays ahead.} Nc4 25. Bxg5 $1 hxg5 26. Nxg5 Nxd6 27. Bd5) 24... cxb4 $17 {[%emt 0:00:10]} 25. Be3 {[%emt 0:00:05]} (25. d6 $17 Rc2 26. Rf1 (26. Be3 Rxe3 27. fxe3 Qxe3+ 28. Kh1 Rxg2 $19)) 25... Rxe3 $19 {[%emt 0:02:37]} 26. fxe3 {[%emt 0:00:02] [#]} Qxe3+ $2 {[%emt 0:00:01]} (26... Nc4 $1 $19 {[%cal Rc4e3]} 27. Kh1 Bxb2 28. Nxg5 hxg5 29. Qxg5+ Qg6 30. Qxg6+ fxg6) 27. Kh1 $11 {[%emt 0:00:06]} Rc2 {[%emt 0:00:26]} (27... Nc4 $11 {keeps the balance.}) 28. Rg1 $2 {[%emt 0:01:13][%mdl 8192] [#]} (28. Rf1 $16 Bb5 29. Nxg5 (29. Rae1 Qf4 $11) 29... Bxf1 30. Qxf7+ Kh8 31. Rxf1 hxg5 32. d6 (32. Qh5+ Kg8 $16) 32... Rxg2 33. Kxg2 Qd2+ 34. Rf2 Qxd6 35. Rc2 (35. Qxa7 Qd5+ 36. Kf1 Qh1+ 37. Ke2 Nc4 $11)) 28... Nc4 $2 {[%emt 0:00:19]} (28... Rxg2 $1 $19 {[%mdl 512] is more deadly.} 29. Rxg2 Qxf3) 29. Raf1 {[%emt 0:00:09]} (29. Rae1 $17 {was forced.} Qf4 30. Nxg5 Qxg5 31. Qxg5 hxg5 32. Rc1 Rxc1 33. Rxc1) 29... Rxb2 $4 {[%emt 0:00:04][%mdl 8192]} (29... Nd6 $19 {Threatens to win with ...Ne4.} 30. Re1 Qf4) 30. Nxg5 $18 {[%emt 0:00:32]} Qxg5 $2 {[%emt 0:00:06]} (30... Nd6 31. Nxf7 Ne4 32. Nxh6+ Bxh6 33. Qg6+ (33. Qf7+ Kh8 $11) 33... Bg7 34. Qxe4 Qxe4 35. Bxe4 Rxa2) 31. Qxf7+ {[%emt 0:00:03]} (31. Rxf7 $2 {loses.} Qxh5 32. Rxg7+ Kxg7 $19) 31... Kh7 {[%emt 0:00:01]} 32. Qxd7 {[%emt 0:00:07] White wants to mate with Be4+.} Ne3 {[%emt 0:00:02]} 33. Be4+ {[%emt 0:00:06] Weighted Error Value: White=0.67/Black=1.10} 1-0

[Event "Romanian Rapid Open 2022"]
[Site "Sebes"]
[Date "2022.12.02"]
[Round "6.29"]
[White "Ghita, Vlad-Bogdan"]
[Black "Zaharie, Ioan"]
[Result "1-0"]
[ECO "B41"]
[WhiteElo "1938"]
[BlackElo "1704"]
[Annotator "TA"]
[PlyCount "65"]
[EventDate "2022.12.02"]
[EventType "rapid"]
[EventCountry "ROU"]
[SourceTitle "playchess.com"]
[Source "ChessBase"]
[SourceQuality "1"]
[TimeControl "600+5"]

{[%evp 14,65,64,59,69,60,83,56,66,51,80,60,65,74,122,124,133,104,303,313,285,284,278,272,260,194,221,232,212,202,214,214,223,177,239,209,262,247,375,240,530,263,258,245,442,438,559,554,538,520,29976,29971,29959,6410]} 1. e4 {[%emt 0:00:03]} c5 {[%emt 0:00:04]} 2. Nf3 {[%emt 0:00:02]} e6 {[%emt 0:00:02]} 3. d4 {[%emt 0:00:02]} cxd4 {[%emt 0:00:01]} 4. Nxd4 {[%emt 0:00:02]} a6 {[%emt 0:00:02]} 5. c4 {[%emt 0:00:02]} Nf6 {[%emt 0:00:05]} 6. Nc3 {[%emt 0:00:02]} d6 {[%emt 0:00:02]} 7. Be2 {[%emt 0:00:08]} Qc7 {[%emt 0:00:02]} 8. O-O {[%emt 0:00:07]} Bd7 {[%emt 0:00:02] B41: Sicilian: Kan Variation: 5 c4.} 9. Be3 {[%emt 0:00:03]} Nc6 {[%emt 0:00:05]} 10. Nc2 {[%emt 0:00:14]} Be7 {[%emt 0:00:04] [#] White is slightly better.} 11. Rc1 $146 {[%emt 0:00:03]} ({Predecessor:} 11. f4 b6 12. Qd2 O-O 13. Rac1 Rfd8 14. g4 Bf8 15. g5 Ne8 16. Ne1 Ne7 17. Nf3 {1-0 (29) Pearson,R (1898)-Burrows,M (1544) Cardiff 2018}) 11... Rc8 {[%emt 0:00:08]} 12. f4 {[%emt 0:00:36]} O-O {[%emt 0:00:10]} 13. g4 {[%emt 0:00:14][%cal Bg2g4,Bg4g5][%mdl 32]} Rfd8 {[%emt 0:00:30]} ({Black should play} 13... h6) 14. g5 $16 {[%emt 0:00:03]} Ne8 {[%emt 0:00:02]} 15. Qe1 {[%emt 0:00:10] White is more active.} f5 $2 {[%emt 0:00:24] [#]} (15... b5 $16) 16. exf5 $18 {[%emt 0:00:06]} exf5 {[%emt 0:00:14]} 17. Nd5 {[%emt 0:00:02]} Qb8 {[%emt 0:00:14]} 18. Bb6 {[%emt 0:00:04] Hoping for Bd3.} Nc7 {[%emt 0:00:29]} 19. Bd3 {[%emt 0:00:15]} Bf8 {[%emt 0:00:49]} 20. Nxc7 {[%emt 0:00:12]} Rxc7 {[%emt 0:00:03]} 21. Qf2 {[%emt 0:00:20] Prevents g6.} Rcc8 {[%emt 0:00:28]} 22. Bxd8 {[%emt 0:00:03]} Rxd8 {[%emt 0:00:04]} 23. a3 {[%emt 0:00:08]} Ne7 {[%emt 0:00:15]} (23... g6 {keeps fighting.} 24. Rfe1 Bg7) 24. Nd4 {[%emt 0:00:10]} d5 {[%emt 0:00:13]} 25. c5 {[%emt 0:00:03][%cal Bc4c5,Bc5c6,Bc6c7][%mdl 32]} Nc6 {[%emt 0:00:16]} (25... g6 {was worth a try.} 26. h4 Bg7) 26. b4 {[%emt 0:00:06]} ({Don't take} 26. Bxf5 Bxf5 27. Nxf5 d4 $18) 26... Qa7 $2 {[%emt 0:00:26] [#]} (26... g6 {might work better.} 27. Rce1 Qc8) 27. Nxc6 {[%emt 0:00:10]} (27. Nxf5 $142 Be8 28. Nd4 Nxd4 29. Qxd4) 27... bxc6 {[%emt 0:00:05]} 28. Rfe1 {[%emt 0:00:05]} a5 $2 {[%emt 0:00:08]} (28... Ra8 {is a better defense.} 29. h4 Qb7) 29. b5 {[%emt 0:00:21]} cxb5 {[%emt 0:00:26]} 30. c6 {[%emt 0:00:01]} Qxf2+ 31. Kxf2 {[%emt 0:00:01]} Bc8 {[%emt 0:00:14]} (31... Bxc6 $18 32. Rxc6 Bxa3 33. Bxb5 g6) 32. c7 {[%emt 0:00:07]} Rd7 {[%emt 0:00:15]} 33. Re8 {[%emt 0:00:06] White took control after the opening.   Weighted Error Value: White=0.30/Black=1.03} 1-0

[Event "Romanian Rapid Open 2022"]
[Site "Sebes"]
[Date "2022.12.02"]
[Round "6.30"]
[White "Coicev, Matei-Andrei"]
[Black "Stan, Luciana-Gabriela"]
[Result "1-0"]
[ECO "B21"]
[WhiteElo "2009"]
[BlackElo "1823"]
[Annotator "TA"]
[PlyCount "105"]
[EventDate "2022.12.02"]
[EventType "rapid"]
[EventCountry "ROU"]
[SourceTitle "playchess.com"]
[Source "ChessBase"]
[SourceQuality "1"]
[TimeControl "600+5"]

{[%evp 9,105,0,-1,2,7,3,18,0,36,38,19,17,15,12,16,5,23,-18,-21,-18,-22,-20,0,0,5,8,9,13,15,15,14,3,12,0,26,-6,0,0,0,-21,0,0,0,0,0,0,0,0,0,-92,-92,-97,-89,-91,-92,-76,0,-34,0,0,0,0,0,0,0,0,0,0,0,0,0,0,0,0,0,0,47,47,77,77,74,74,403,395,847,847,839,833,826,814,720,720,710,685,934,933,29986,29987]} 1. e4 {[%emt 0:00:02]} c5 {[%emt 0:00:01]} 2. Be2 {[%emt 0:00:02]} e6 {[%emt 0:00:02]} 3. f4 {[%emt 0:00:04]} Nc6 {[%emt 0:00:02]} 4. d3 {[%emt 0:00:02]} g6 {[%emt 0:00:07]} 5. Nf3 {[%emt 0:00:05]} Bg7 {[%emt 0:00:01]} 6. O-O {[%emt 0:00:03] B21: Sicilian: 2 f4 and Morra Gambit.} Nge7 {[%emt 0:00:01]} 7. c3 {[%emt 0:00:10]} d5 {[%emt 0:00:12]} 8. Na3 {[%emt 0:00:15] The position is equal. 8.Be3 is more fashionable.} a6 {[%emt 0:00:29] [#]} 9. Be3 $146 {[%emt 0:00:30]} ({Predecessor:} 9. Nc2 b5 10. e5 d4 11. cxd4 cxd4 12. Ng5 Bb7 13. Ne4 O-O 14. Bd2 Nf5 15. g4 {1-0 (43) Seul,G (2372)-Disconzi da Silva,R (2333) Chess.com INT 2020}) 9... d4 {[%emt 0:00:41]} 10. cxd4 {[%emt 0:00:20]} Nxd4 {[%emt 0:00:02]} 11. Nxd4 {[%emt 0:01:12]} Bxd4 {[%emt 0:00:07]} 12. Qd2 {[%emt 0:00:14]} Nc6 {[%emt 0:00:31]} 13. Bxd4 {[%emt 0:01:09]} Nxd4 {[%emt 0:00:10]} 14. Nc2 {[%emt 0:00:39]} O-O {[%emt 0:00:27]} 15. Rac1 {[%emt 0:00:36]} b5 {[%emt 0:00:20]} 16. Qe3 {[%emt 0:00:54]} Bb7 {[%emt 0:01:02]} 17. Nxd4 {[%emt 0:00:10]} cxd4 {[%emt 0:00:02]} 18. Qd2 {[%emt 0:00:03]} Rc8 {[%emt 0:00:10]} 19. Rxc8 {[%emt 0:00:02]} Qxc8 {[%emt 0:00:02]} 20. Rc1 {[%emt 0:00:02]} Qd7 {[%emt 0:00:05]} 21. Qb4 {[%emt 0:01:31]} Ra8 {[%emt 0:03:09]} 22. e5 {[%emt 0:01:58]} Bd5 {[%emt 0:00:41]} 23. b3 {[%emt 0:00:39]} Qb7 {[%emt 0:00:11]} 24. Bf1 {[%emt 0:00:11]} Qb6 {[%emt 0:00:22]} (24... a5 $5 {[%cal Ra5b4]} 25. Qxd4 Rc8 26. Rxc8+ Qxc8 $11) 25. Rc5 {[%emt 0:00:16]} Rd8 {[%emt 0:00:33]} 26. Rc1 {[%emt 0:00:37]} Kg7 {[%emt 0:01:05]} 27. Qe7 {[%emt 0:00:03]} Rf8 $1 {[%emt 0:00:11]} 28. Qf6+ {[%emt 0:00:21]} Kg8 {[%emt 0:00:01]} 29. Qe7 {[%emt 0:00:07]} (29. h4 $11) 29... Qa5 $1 $17 {[%emt 0:00:05]} 30. Rc2 {[%emt 0:00:04]} Qe1 {[%emt 0:00:02]} 31. Re2 {[%emt 0:00:04] Prevents Qe3+.} Qd1 {[%emt 0:00:04]} 32. Rf2 {[%emt 0:00:03] [#]} Rc8 {[%emt 0:00:25]} (32... Qc1 $1 $17) 33. Qb4 {[%emt 0:00:07]} Rc1 {[%emt 0:00:24]} 34. Qxd4 {[%emt 0:00:11]} h5 {[%emt 0:00:11]} 35. Qe3 {[%emt 0:00:08]} Rc3 {[%emt 0:00:44]} 36. Qd2 {[%emt 0:00:04]} Qa1 {[%emt 0:00:05]} 37. Qb2 {[%emt 0:00:03]} Qe1 {[%emt 0:00:02]} 38. Qd2 {[%emt 0:00:01]} (38. Re2 $5 Qc1 $8 39. Qxc1 Rxc1 40. Kf2 $11) 38... Qa1 {[%emt 0:00:01]} 39. Qb2 {[%emt 0:00:06]} Qe1 {[%emt 0:00:18]} 40. Re2 {[%emt 0:00:01]} Qc1 {[%emt 0:00:01]} 41. Qxc1 {[%emt 0:00:01]} Rxc1 $11 {[%emt 0:00:01][%mdl 4096] Endgame KRB-KRB} 42. Kf2 {[%emt 0:00:03]} Rd1 {[%emt 0:00:02] Prevents Rd2.} (42... a5 $11 {deserves consideration.}) 43. Rc2 {[%emt 0:00:04]} Kg7 {[%emt 0:00:02]} 44. Be2 {[%emt 0:00:01]} Rh1 {[%emt 0:00:04]} 45. h3 {[%emt 0:00:01] Hoping for Bf1.} h4 $2 {[%emt 0:00:16][%mdl 8192] [#] A mistake that costs the game.} (45... Ra1 $16) 46. Bf1 $1 $18 {[%emt 0:00:21]} Rxf1+ $2 {[%emt 0:00:13]} (46... f5 47. Rc7+ Kh6) 47. Kxf1 {KR-KB} Kh6 48. Kf2 {[%emt 0:00:02]} g5 {[%emt 0:00:00]} 49. fxg5+ {[%emt 0:00:02]} Kxg5 {[%emt 0:00:01]} 50. Ke3 {[%emt 0:00:01]} Kf5 {[%emt 0:00:01]} 51. d4 {[%emt 0:00:01]} f6 {[%emt 0:00:02]} 52. Rf2+ {[%emt 0:00:01]} Kg5 {[%emt 0:00:00]} 53. exf6 {[%emt 0:00:02] Weighted Error Value: White=0.07 (flawless) /Black=0.40} 1-0